[Event "Titled Tuesday Blitz February 14 Late 2023"]
[White "Vaglio Munoz, Jaime"]
[Black "Marin Masis, Jose Esteban"]
[WhiteFideId "6500145"]
[BlackFideId "6508146"]
[WhiteElo "2174"]
[BlackElo "1938"]
[Result "1-0"]
[Round "06"]
[TimeControl "180+2"]
[Date "2023.02.14"]
[WhiteClock "0:00:38"]
[BlackClock "0:00:02"]

1. d4 {[%clk 0:03:00]}  Nf6 {[%clk 0:02:58]} 2. c4 {[%clk 0:02:59]}  e6 {[%clk 0:02:58]} 3. a3 {[%clk 0:02:59]}  d5 {[%clk 0:02:57]} 4. Nc3 {[%clk 0:02:57]}  dxc4 {[%clk 0:02:50]} 5. e4 {[%clk 0:02:56]}  Be7 {[%clk 0:02:44]} 6. Bxc4 {[%clk 0:02:54]}  O-O {[%clk 0:02:42]} 7. Nf3 {[%clk 0:02:54]}  b6 {[%clk 0:02:41]} 8. O-O {[%clk 0:02:50]}  Bb7 {[%clk 0:02:41]} 9. Re1 {[%clk 0:02:50]}  Nbd7 {[%clk 0:02:40]} 10. b4 {[%clk 0:02:49]}  a5 {[%clk 0:02:38]} 11. bxa5 {[%clk 0:02:45]}  Rxa5 {[%clk 0:02:36]} 12. Bd2 {[%clk 0:02:44]}  Rxa3 {[%clk 0:02:28]} 13. Rxa3 {[%clk 0:02:37]}  Bxa3 {[%clk 0:02:29]} 14. Qa4 {[%clk 0:02:35]}  Be7 {[%clk 0:02:24]} 15. Bf4 {[%clk 0:02:24]}  Nh5 {[%clk 0:02:03]} 16. Bg3 {[%clk 0:02:20]}  Nxg3 {[%clk 0:02:02]} 17. hxg3 {[%clk 0:02:20]}  Nf6 {[%clk 0:01:49]} 18. e5 {[%clk 0:02:07]}  Nd5 {[%clk 0:01:35]} 19. Ne4 {[%clk 0:02:06]}  Qe8 {[%clk 0:01:20]} 20. Qc2 {[%clk 0:02:04]}  Nb4 {[%clk 0:01:15]} 21. Qb1 {[%clk 0:02:01]}  Qc6 {[%clk 0:01:03]} 22. Bf1 {[%clk 0:01:42]}  Ra8 {[%clk 0:00:52]} 23. Neg5 {[%clk 0:01:36]}  g6 {[%clk 0:00:38]} 24. Rc1 {[%clk 0:01:34]}  Qd7 {[%clk 0:00:33]} 25. Ne4 {[%clk 0:01:29]}  Kg7 {[%clk 0:00:24]} 26. Rd1 {[%clk 0:01:26]}  Nd5 {[%clk 0:00:23]} 27. Qc1 {[%clk 0:01:24]}  Nb4 {[%clk 0:00:21]} 28. Qf4 {[%clk 0:01:23]}  Bxe4 {[%clk 0:00:20]} 29. Qxe4 {[%clk 0:01:23]}  Qd5 {[%clk 0:00:21]} 30. Qf4 {[%clk 0:01:22]}  h6 {[%clk 0:00:20]} 31. Rc1 {[%clk 0:01:15]}  Na2 {[%clk 0:00:18]} 32. Rxc7 {[%clk 0:01:14]}  Re8 {[%clk 0:00:18]} 33. Rxe7 {[%clk 0:01:11]}  Rxe7 {[%clk 0:00:18]} 34. Qf6+ {[%clk 0:01:11]}  Kg8 {[%clk 0:00:16]} 35. Qxe7 {[%clk 0:01:11]}  b5 {[%clk 0:00:16]} 36. Qh4 {[%clk 0:01:08]}  Kg7 {[%clk 0:00:16]} 37. Qf4 {[%clk 0:01:07]}  b4 {[%clk 0:00:16]} 38. Qd2 {[%clk 0:01:07]}  Nc3 {[%clk 0:00:16]} 39. Ne1 {[%clk 0:01:03]}  Ne4 {[%clk 0:00:16]} 40. Qd3 {[%clk 0:01:01]}  b3 {[%clk 0:00:16]} 41. f3 {[%clk 0:01:00]}  b2 {[%clk 0:00:16]} 42. fxe4 {[%clk 0:00:57]}  Qb7 {[%clk 0:00:17]} 43. Qb1 {[%clk 0:00:56]}  Qb6 {[%clk 0:00:16]} 44. Nf3 {[%clk 0:00:55]}  Qb3 {[%clk 0:00:16]} 45. Bd3 {[%clk 0:00:55]}  Qc3 {[%clk 0:00:15]} 46. Kf2 {[%clk 0:00:55]}  Qc1 {[%clk 0:00:16]} 47. Ke2 {[%clk 0:00:55]}  f6 {[%clk 0:00:11]} 48. exf6+ {[%clk 0:00:53]}  Kxf6 {[%clk 0:00:12]} 49. e5+ {[%clk 0:00:53]}  Kg7 {[%clk 0:00:12]} 50. Nd2 {[%clk 0:00:53]}  Qg1 {[%clk 0:00:11]} 51. Be4 {[%clk 0:00:51]}  Qxd4 {[%clk 0:00:09]} 52. Bxg6 {[%clk 0:00:48]}  Qxe5+ {[%clk 0:00:09]} 53. Kf1 {[%clk 0:00:48]}  Qf6+ {[%clk 0:00:09]} 54. Ke2 {[%clk 0:00:46]}  Qe5+ {[%clk 0:00:09]} 55. Kd1 {[%clk 0:00:46]}  Qc3 {[%clk 0:00:06]} 56. Qc2 {[%clk 0:00:43]}  Qxg3 {[%clk 0:00:04]} 57. Bd3 {[%clk 0:00:41]}  Qxg2 {[%clk 0:00:02]} 58. Qxb2+ {[%clk 0:00:39]}  Kf7 {[%clk 0:00:01]} 59. Qd4 {[%clk 0:00:39]}  Qg1+ {[%clk 0:00:02]} 60. Qxg1 {[%clk 0:00:38]} 1-0


[Site "https://www.chess.com"]

[Event "Titled Tuesday Blitz February 14 Late 2023"]
[White "Li, Hui"]
[Black "Oliveira, Tiago Batista"]
[WhiteFideId "15400310"]
[BlackFideId "2108291"]
[WhiteElo "1963"]
[BlackElo "1991"]
[Result "1-0"]
[Round "06"]
[TimeControl "180+2"]
[Date "2023.02.14"]
[WhiteClock "0:00:09"]
[BlackClock "0:00:02"]

1. e4 {[%clk 0:03:00]}  c5 {[%clk 0:02:58]} 2. Nf3 {[%clk 0:03:01]}  Nc6 {[%clk 0:02:59]} 3. d4 {[%clk 0:03:01]}  cxd4 {[%clk 0:02:59]} 4. Nxd4 {[%clk 0:03:02]}  Nf6 {[%clk 0:02:59]} 5. Nc3 {[%clk 0:03:03]}  d6 {[%clk 0:02:59]} 6. Be2 {[%clk 0:02:58]}  e6 {[%clk 0:02:57]} 7. O-O {[%clk 0:02:57]}  Be7 {[%clk 0:02:57]} 8. Be3 {[%clk 0:02:58]}  O-O {[%clk 0:02:58]} 9. f4 {[%clk 0:02:58]}  Bd7 {[%clk 0:02:36]} 10. Kh1 {[%clk 0:02:51]}  Nxd4 {[%clk 0:02:27]} 11. Qxd4 {[%clk 0:02:49]}  Bc6 {[%clk 0:02:15]} 12. Bf3 {[%clk 0:02:48]}  Qa5 {[%clk 0:02:12]} 13. Rad1 {[%clk 0:02:31]}  Rfd8 {[%clk 0:02:11]} 14. Qd2 {[%clk 0:02:27]}  b5 {[%clk 0:01:40]} 15. Nd5 {[%clk 0:02:19]}  Qxd2 {[%clk 0:01:14]} 16. Nxe7+ {[%clk 0:02:19]}  Kf8 {[%clk 0:01:12]} 17. Rxd2 {[%clk 0:02:19]}  Kxe7 {[%clk 0:01:11]} 18. e5 {[%clk 0:02:19]}  Nd5 {[%clk 0:01:09]} 19. exd6+ {[%clk 0:02:15]}  Kd7 {[%clk 0:01:08]} 20. Bd4 {[%clk 0:02:07]}  f6 {[%clk 0:00:40]} 21. g3 {[%clk 0:02:05]}  Rdc8 {[%clk 0:00:29]} 22. Kg2 {[%clk 0:01:55]}  Nb4 {[%clk 0:00:28]} 23. c3 {[%clk 0:01:21]}  Bxf3+ {[%clk 0:00:23]} 24. Rxf3 {[%clk 0:01:20]}  Nd5 {[%clk 0:00:21]} 25. f5 {[%clk 0:01:14]}  Kxd6 {[%clk 0:00:13]} 26. fxe6 {[%clk 0:01:14]}  Kxe6 {[%clk 0:00:13]} 27. Rff2 {[%clk 0:01:01]}  Nb6 {[%clk 0:00:11]} 28. Rfe2+ {[%clk 0:00:58]}  Kf7 {[%clk 0:00:11]} 29. Bxb6 {[%clk 0:00:58]}  axb6 {[%clk 0:00:11]} 30. Rd7+ {[%clk 0:00:58]}  Kg6 {[%clk 0:00:12]} 31. a3 {[%clk 0:00:58]}  Rc6 {[%clk 0:00:08]} 32. Ree7 {[%clk 0:00:58]}  Rg8 {[%clk 0:00:07]} 33. Kf3 {[%clk 0:00:53]}  h5 {[%clk 0:00:06]} 34. Ke4 {[%clk 0:00:46]}  Rc4+ {[%clk 0:00:04]} 35. Rd4 {[%clk 0:00:45]}  Rc5 {[%clk 0:00:02]} 36. Rd5 {[%clk 0:00:44]}  Rc4+ {[%clk 0:00:01]} 37. Kf3 {[%clk 0:00:41]}  h4 {[%clk 0:00:02]} 38. Rxb5 {[%clk 0:00:39]}  hxg3 {[%clk 0:00:02]} 39. hxg3 {[%clk 0:00:40]}  Rc6 {[%clk 0:00:02]} 40. Rd5 {[%clk 0:00:39]}  Rh8 {[%clk 0:00:02]} 41. Rdd7 {[%clk 0:00:37]}  Rh7 {[%clk 0:00:02]} 42. Rc7 {[%clk 0:00:37]}  Rd6 {[%clk 0:00:02]} 43. Red7 {[%clk 0:00:37]}  Re6 {[%clk 0:00:02]} 44. Rc4 {[%clk 0:00:30]}  Rh1 {[%clk 0:00:02]} 45. Rg4+ {[%clk 0:00:29]}  Kf5 {[%clk 0:00:02]} 46. Rd5+ {[%clk 0:00:25]}  Re5 {[%clk 0:00:02]} 47. Rxe5+ {[%clk 0:00:25]}  fxe5 {[%clk 0:00:02]} 48. Rxg7 {[%clk 0:00:26]}  Rb1 {[%clk 0:00:02]} 49. g4+ {[%clk 0:00:24]}  Kf6 {[%clk 0:00:01]} 50. Rb7 {[%clk 0:00:21]}  Rxb2 {[%clk 0:00:01]} 51. Ke4 {[%clk 0:00:21]}  Ke6 {[%clk 0:00:02]} 52. g5 {[%clk 0:00:19]}  Rb3 {[%clk 0:00:02]} 53. Kd3 {[%clk 0:00:17]}  Rxa3 {[%clk 0:00:02]} 54. Rxb6+ {[%clk 0:00:17]}  Kf5 {[%clk 0:00:03]} 55. g6 {[%clk 0:00:18]}  Ra1 {[%clk 0:00:02]} 56. c4 {[%clk 0:00:16]}  Rg1 {[%clk 0:00:03]} 57. c5 {[%clk 0:00:16]}  e4+ {[%clk 0:00:03]} 58. Ke3 {[%clk 0:00:16]}  Rg3+ {[%clk 0:00:03]} 59. Kf2 {[%clk 0:00:15]}  Rf3+ {[%clk 0:00:02]} 60. Ke2 {[%clk 0:00:15]}  Rg3 {[%clk 0:00:03]} 61. Kf2 {[%clk 0:00:15]}  Rg4 {[%clk 0:00:02]} 62. Rd6 {[%clk 0:00:14]}  Ke5 {[%clk 0:00:02]} 63. Ke3 {[%clk 0:00:11]}  Rg3+ {[%clk 0:00:02]} 64. Ke2 {[%clk 0:00:12]}  Rg5 {[%clk 0:00:02]} 65. Ra6 {[%clk 0:00:10]}  Kd4 {[%clk 0:00:02]} 66. c6 {[%clk 0:00:09]}  Rg2+ {[%clk 0:00:02]} 67. Kf1 {[%clk 0:00:09]}  Rxg6 {[%clk 0:00:02]} 68. c7 {[%clk 0:00:09]} 1-0


[Site "https://www.chess.com"]

[Event "Titled Tuesday Blitz February 14 Late 2023"]
[White "Rian, Kapriaga"]
[Black "Davalos Prieto, Abel Justo"]
[WhiteFideId "7103263"]
[BlackFideId "5102766"]
[WhiteElo "2089"]
[BlackElo "2029"]
[Result "1-0"]
[Round "06"]
[TimeControl "180+2"]
[Date "2023.02.14"]
[WhiteClock "0:00:20"]
[BlackClock "0:01:06"]

1. d4 {[%clk 0:03:00]}  Nf6 {[%clk 0:02:59]} 2. Nf3 {[%clk 0:03:00]}  e6 {[%clk 0:02:59]} 3. Bg5 {[%clk 0:02:59]}  d5 {[%clk 0:02:56]} 4. Nbd2 {[%clk 0:02:56]}  Be7 {[%clk 0:02:56]} 5. e3 {[%clk 0:02:55]}  O-O {[%clk 0:02:52]} 6. Bd3 {[%clk 0:02:54]}  h6 {[%clk 0:02:52]} 7. Bh4 {[%clk 0:02:54]}  c5 {[%clk 0:02:50]} 8. c3 {[%clk 0:02:53]}  b6 {[%clk 0:02:49]} 9. Ne5 {[%clk 0:02:52]}  Qc7 {[%clk 0:02:44]} 10. O-O {[%clk 0:02:51]}  Ba6 {[%clk 0:02:43]} 11. Bxa6 {[%clk 0:02:44]}  Nxa6 {[%clk 0:02:44]} 12. Qe2 {[%clk 0:02:43]}  Nb8 {[%clk 0:02:41]} 13. f4 {[%clk 0:02:43]}  Nc6 {[%clk 0:02:32]} 14. Rf3 {[%clk 0:02:40]}  Ne4 {[%clk 0:02:30]} 15. Bxe7 {[%clk 0:02:38]}  Nxe7 {[%clk 0:02:30]} 16. Nxe4 {[%clk 0:02:35]}  dxe4 {[%clk 0:02:30]} 17. Rff1 {[%clk 0:02:18]}  cxd4 {[%clk 0:02:13]} 18. cxd4 {[%clk 0:02:17]}  Rac8 {[%clk 0:02:12]} 19. Rf2 {[%clk 0:01:55]}  Nd5 {[%clk 0:02:07]} 20. g4 {[%clk 0:01:45]}  f6 {[%clk 0:01:58]} 21. Ng6 {[%clk 0:01:44]}  Rfd8 {[%clk 0:01:54]} 22. g5 {[%clk 0:01:39]}  hxg5 {[%clk 0:01:51]} 23. fxg5 {[%clk 0:01:37]}  f5 {[%clk 0:01:48]} 24. Raf1 {[%clk 0:01:14]}  Qc4 {[%clk 0:01:47]} 25. Qh5 {[%clk 0:01:11]}  Nxe3 {[%clk 0:01:46]} 26. Qh8+ {[%clk 0:00:56]}  Kf7 {[%clk 0:01:43]} 27. Ne5+ {[%clk 0:00:56]}  Ke7 {[%clk 0:01:40]} 28. Qxg7+ {[%clk 0:00:55]}  Kd6 {[%clk 0:01:40]} 29. Nxc4+ {[%clk 0:00:51]}  Rxc4 {[%clk 0:01:39]} 30. Re1 {[%clk 0:00:39]}  Nd5 {[%clk 0:01:36]} 31. Qe5+ {[%clk 0:00:36]}  Kd7 {[%clk 0:01:33]} 32. Rxf5 {[%clk 0:00:24]}  Re8 {[%clk 0:01:11]} 33. Rf7+ {[%clk 0:00:23]}  Re7 {[%clk 0:01:11]} 34. Rxe7+ {[%clk 0:00:21]}  Nxe7 {[%clk 0:01:10]} 35. Qxe4 {[%clk 0:00:21]}  Rc8 {[%clk 0:01:07]} 36. Qxe6+ {[%clk 0:00:21]}  Kc7 {[%clk 0:01:06]} 37. Qxe7+ {[%clk 0:00:21]}  Kb8 {[%clk 0:01:06]} 38. Qd6+ {[%clk 0:00:20]} 1-0


[Site "https://www.chess.com"]

[Event "Titled Tuesday Blitz February 14 Late 2023"]
[White "Marcolino, Daniel Mattos"]
[Black "Mendez Machado, Andre"]
[WhiteFideId "2106841"]
[BlackFideId "6603793"]
[WhiteElo "2006"]
[BlackElo "1974"]
[Result "0-1"]
[Round "06"]
[TimeControl "180+2"]
[Date "2023.02.14"]
[WhiteClock "0:00:28"]
[BlackClock "0:00:51"]

1. d4 {[%clk 0:03:00]}  Nf6 {[%clk 0:03:00]} 2. Nf3 {[%clk 0:03:00]}  e6 {[%clk 0:02:56]} 3. g3 {[%clk 0:03:00]}  d5 {[%clk 0:02:55]} 4. Bg2 {[%clk 0:03:01]}  Be7 {[%clk 0:02:56]} 5. O-O {[%clk 0:03:01]}  O-O {[%clk 0:02:56]} 6. c4 {[%clk 0:03:02]}  dxc4 {[%clk 0:02:57]} 7. Qc2 {[%clk 0:03:02]}  a6 {[%clk 0:02:57]} 8. a4 {[%clk 0:03:02]}  Nc6 {[%clk 0:02:57]} 9. Qxc4 {[%clk 0:02:53]}  Na5 {[%clk 0:02:57]} 10. Qc2 {[%clk 0:02:50]}  b6 {[%clk 0:02:57]} 11. Ne5 {[%clk 0:02:43]}  Bb7 {[%clk 0:02:58]} 12. Bxb7 {[%clk 0:02:42]}  Nxb7 {[%clk 0:02:59]} 13. Nc6 {[%clk 0:02:42]}  Qe8 {[%clk 0:02:59]} 14. Nxe7+ {[%clk 0:02:43]}  Qxe7 {[%clk 0:03:00]} 15. Bf4 {[%clk 0:02:42]}  Rac8 {[%clk 0:02:46]} 16. Nc3 {[%clk 0:01:52]}  c5 {[%clk 0:02:44]} 17. dxc5 {[%clk 0:01:49]}  Nxc5 {[%clk 0:02:29]} 18. a5 {[%clk 0:01:29]}  b5 {[%clk 0:02:25]} 19. Rad1 {[%clk 0:01:25]}  e5 {[%clk 0:02:01]} 20. Bg5 {[%clk 0:01:14]}  Na4 {[%clk 0:01:23]} 21. Rd3 {[%clk 0:00:42]}  h6 {[%clk 0:01:12]} 22. Bxf6 {[%clk 0:00:39]}  Qxf6 {[%clk 0:01:13]} 23. Qb3 {[%clk 0:00:31]}  Nc5 {[%clk 0:01:11]} 24. Nd5 {[%clk 0:00:28]}  Qe6 {[%clk 0:00:51]} 0-1


[Site "https://www.chess.com"]

[Event "Titled Tuesday Blitz February 14 Late 2023"]
[White "Curtis, John"]
[Black "Jesusesmifuerza"]
[WhiteFideId "3200256"]
[WhiteElo "2292"]
[BlackElo "2001"]
[Result "1-0"]
[Round "06"]
[TimeControl "180+2"]
[Date "2023.02.14"]
[WhiteClock "0:01:41"]
[BlackClock "0:00:03"]

1. e4 {[%clk 0:03:00]}  c5 {[%clk 0:00:42]} 2. Nf3 {[%clk 0:02:59]}  e6 {[%clk 0:00:42]} 3. d4 {[%clk 0:02:59]}  cxd4 {[%clk 0:00:43]} 4. Nxd4 {[%clk 0:02:59]}  Nf6 {[%clk 0:00:44]} 5. Nc3 {[%clk 0:02:59]}  Nc6 {[%clk 0:00:44]} 6. Nxc6 {[%clk 0:02:59]}  bxc6 {[%clk 0:00:45]} 7. e5 {[%clk 0:02:59]}  Nd5 {[%clk 0:00:45]} 8. Ne4 {[%clk 0:03:00]}  Qc7 {[%clk 0:00:44]} 9. f4 {[%clk 0:03:00]}  Qb6 {[%clk 0:00:45]} 10. c4 {[%clk 0:02:55]}  Bb4+ {[%clk 0:00:45]} 11. Ke2 {[%clk 0:02:50]}  Ba6 {[%clk 0:00:45]} 12. Kf3 {[%clk 0:02:51]}  f5 {[%clk 0:00:45]} 13. Nf2 {[%clk 0:02:35]}  Ne7 {[%clk 0:00:40]} 14. Be3 {[%clk 0:02:28]}  Bc5 {[%clk 0:00:40]} 15. Bxc5 {[%clk 0:02:27]}  Qxc5 {[%clk 0:00:41]} 16. Rc1 {[%clk 0:02:12]}  O-O {[%clk 0:00:30]} 17. Qd6 {[%clk 0:02:08]}  Qxd6 {[%clk 0:00:30]} 18. exd6 {[%clk 0:02:08]}  Ng6 {[%clk 0:00:21]} 19. g3 {[%clk 0:02:04]}  c5 {[%clk 0:00:20]} 20. Nd3 {[%clk 0:02:00]}  Bb7+ {[%clk 0:00:20]} 21. Kf2 {[%clk 0:01:59]}  Bxh1 {[%clk 0:00:20]} 22. Nxc5 {[%clk 0:01:59]}  Bc6 {[%clk 0:00:19]} 23. b4 {[%clk 0:01:57]}  Rfb8 {[%clk 0:00:16]} 24. b5 {[%clk 0:01:57]}  Be4 {[%clk 0:00:15]} 25. Ke3 {[%clk 0:01:50]}  Rd8 {[%clk 0:00:14]} 26. Nxe4 {[%clk 0:01:48]}  fxe4 {[%clk 0:00:14]} 27. c5 {[%clk 0:01:47]}  Rdc8 {[%clk 0:00:12]} 28. Bg2 {[%clk 0:01:47]}  e5 {[%clk 0:00:11]} 29. f5 {[%clk 0:01:45]}  Nf8 {[%clk 0:00:10]} 30. Bxe4 {[%clk 0:01:45]}  g6 {[%clk 0:00:11]} 31. Bxa8 {[%clk 0:01:45]}  Rxa8 {[%clk 0:00:10]} 32. g4 {[%clk 0:01:44]}  Rc8 {[%clk 0:00:07]} 33. Ke4 {[%clk 0:01:43]}  gxf5+ {[%clk 0:00:05]} 34. gxf5 {[%clk 0:01:43]}  Kf7 {[%clk 0:00:06]} 35. Kxe5 {[%clk 0:01:44]}  h5 {[%clk 0:00:05]} 36. c6 {[%clk 0:01:43]}  Rb8 {[%clk 0:00:03]} 37. Rc5 {[%clk 0:01:41]}  Ke8 {[%clk 0:00:03]} 38. c7 {[%clk 0:01:41]} 1-0


[Site "https://www.chess.com"]

[Event "Titled Tuesday Blitz February 14 Late 2023"]
[White "Sailer, Mike"]
[Black "Vargas, Mauricio"]
[WhiteFideId "2012901"]
[BlackFideId "4404572"]
[WhiteElo "2109"]
[BlackElo "2035"]
[Result "1-0"]
[Round "06"]
[TimeControl "180+2"]
[Date "2023.02.14"]
[WhiteClock "0:00:04"]
[BlackClock "0:00:05"]

1. d4 {[%clk 0:02:57]}  d5 {[%clk 0:02:16]} 2. Bg5 {[%clk 0:02:51]}  h5 {[%clk 0:02:14]} 3. Nc3 {[%clk 0:02:27]}  a6 {[%clk 0:02:07]} 4. e4 {[%clk 0:02:13]}  f6 {[%clk 0:02:05]} 5. Bf4 {[%clk 0:02:04]}  g5 {[%clk 0:02:04]} 6. Be3 {[%clk 0:02:00]}  dxe4 {[%clk 0:01:59]} 7. Nxe4 {[%clk 0:01:59]}  Bf5 {[%clk 0:01:58]} 8. Bd3 {[%clk 0:01:56]}  Nc6 {[%clk 0:01:48]} 9. c3 {[%clk 0:01:47]}  Bh7 {[%clk 0:01:41]} 10. Qc2 {[%clk 0:01:36]}  Nh6 {[%clk 0:01:41]} 11. Nxf6+ {[%clk 0:01:30]}  exf6 {[%clk 0:01:36]} 12. Bxh7 {[%clk 0:01:30]}  Qe7 {[%clk 0:01:30]} 13. Bg6+ {[%clk 0:01:25]}  Nf7 {[%clk 0:01:29]} 14. Bf5 {[%clk 0:01:09]}  Nxd4 {[%clk 0:01:27]} 15. cxd4 {[%clk 0:01:06]}  Nd6 {[%clk 0:01:21]} 16. Bg6+ {[%clk 0:01:05]}  Kd8 {[%clk 0:01:19]} 17. O-O-O {[%clk 0:00:57]}  Kc8 {[%clk 0:01:14]} 18. Ne2 {[%clk 0:00:53]}  Kb8 {[%clk 0:01:13]} 19. Nc3 {[%clk 0:00:52]}  b6 {[%clk 0:01:13]} 20. Nd5 {[%clk 0:00:48]}  Qg7 {[%clk 0:01:09]} 21. Bd3 {[%clk 0:00:40]}  Ka7 {[%clk 0:01:05]} 22. Kb1 {[%clk 0:00:36]}  Rc8 {[%clk 0:01:04]} 23. Rc1 {[%clk 0:00:33]}  Kb8 {[%clk 0:00:57]} 24. Qc6 {[%clk 0:00:31]}  a5 {[%clk 0:00:43]} 25. Ba6 {[%clk 0:00:30]}  Re8 {[%clk 0:00:37]} 26. Nxf6 {[%clk 0:00:11]}  Rd8 {[%clk 0:00:18]} 27. Nd5 {[%clk 0:00:09]}  Rd7 {[%clk 0:00:12]} 28. Rhd1 {[%clk 0:00:03]}  Qf6 {[%clk 0:00:07]} 29. Rd2 {[%clk 0:00:04]}  Qf5+ {[%clk 0:00:05]} 30. Rdc2 {[%clk 0:00:04]} 1-0


[Site "https://www.chess.com"]

[Event "Titled Tuesday Blitz February 14 Late 2023"]
[White "Terry, Renato"]
[Black "Boros, Denes"]
[WhiteFideId "3803457"]
[BlackFideId "722340"]
[WhiteElo "2520"]
[BlackElo "2406"]
[Result "1-0"]
[Round "07"]
[TimeControl "180+2"]
[Date "2023.02.14"]
[WhiteClock "0:00:11"]
[BlackClock "0:00:04"]

1. d4 {[%clk 0:02:59]}  Nf6 {[%clk 0:03:00]} 2. Nf3 {[%clk 0:03:00]}  d5 {[%clk 0:02:56]} 3. c4 {[%clk 0:03:00]}  c5 {[%clk 0:02:52]} 4. dxc5 {[%clk 0:03:00]}  e6 {[%clk 0:02:46]} 5. e3 {[%clk 0:03:00]}  Bxc5 {[%clk 0:02:45]} 6. a3 {[%clk 0:03:01]}  O-O {[%clk 0:02:33]} 7. b4 {[%clk 0:03:00]}  Be7 {[%clk 0:02:32]} 8. Bb2 {[%clk 0:02:58]}  a5 {[%clk 0:02:31]} 9. b5 {[%clk 0:02:56]}  Nbd7 {[%clk 0:02:28]} 10. Nbd2 {[%clk 0:02:56]}  a4 {[%clk 0:02:24]} 11. Be2 {[%clk 0:02:54]}  b6 {[%clk 0:02:21]} 12. cxd5 {[%clk 0:02:48]}  exd5 {[%clk 0:02:20]} 13. Nd4 {[%clk 0:02:45]}  Bb7 {[%clk 0:02:19]} 14. O-O {[%clk 0:02:41]}  Nc5 {[%clk 0:02:19]} 15. Rc1 {[%clk 0:02:33]}  Re8 {[%clk 0:02:19]} 16. N2f3 {[%clk 0:02:22]}  Nfe4 {[%clk 0:02:08]} 17. Nc6 {[%clk 0:01:58]}  Qd6 {[%clk 0:02:00]} 18. Nxe7+ {[%clk 0:01:57]}  Rxe7 {[%clk 0:02:01]} 19. Nd4 {[%clk 0:01:54]}  Qg6 {[%clk 0:01:51]} 20. Bh5 {[%clk 0:01:41]}  Qg5 {[%clk 0:01:35]} 21. Qe2 {[%clk 0:01:27]}  g6 {[%clk 0:01:32]} 22. Bf3 {[%clk 0:01:23]}  h5 {[%clk 0:01:28]} 23. Rfd1 {[%clk 0:01:18]}  Kh7 {[%clk 0:01:22]} 24. Rc2 {[%clk 0:00:50]}  Rae8 {[%clk 0:01:17]} 25. Rdc1 {[%clk 0:00:48]}  h4 {[%clk 0:01:01]} 26. h3 {[%clk 0:00:44]}  Nd6 {[%clk 0:00:44]} 27. Bc3 {[%clk 0:00:39]}  Nb3 {[%clk 0:00:39]} 28. Rd1 {[%clk 0:00:35]}  Nc4 {[%clk 0:00:24]} 29. Bb4 {[%clk 0:00:35]}  Rc7 {[%clk 0:00:22]} 30. Nc6 {[%clk 0:00:34]}  Bxc6 {[%clk 0:00:12]} 31. bxc6 {[%clk 0:00:35]}  Ne5 {[%clk 0:00:13]} 32. Bxd5 {[%clk 0:00:34]}  Qf5 {[%clk 0:00:13]} 33. f4 {[%clk 0:00:29]}  Nd7 {[%clk 0:00:08]} 34. cxd7 {[%clk 0:00:28]}  Rxc2 {[%clk 0:00:09]} 35. dxe8=Q {[%clk 0:00:24]}  Rxe2 {[%clk 0:00:09]} 36. Bc3 {[%clk 0:00:13]}  Rxg2+ {[%clk 0:00:05]} 37. Bxg2 {[%clk 0:00:11]}  Qe5 {[%clk 0:00:04]} 1-0


[Site "https://www.chess.com"]

[Event "Titled Tuesday Blitz February 14 Late 2023"]
[White "Indjic, Aleksandar"]
[Black "Mekhitarian, Krikor Sevag"]
[WhiteFideId "911925"]
[BlackFideId "2107660"]
[WhiteElo "2618"]
[BlackElo "2537"]
[Result "0-1"]
[Round "07"]
[TimeControl "180+2"]
[Date "2023.02.14"]
[WhiteClock "0:00:04"]
[BlackClock "0:00:07"]

1. d4 {[%clk 0:02:55]}  Nf6 {[%clk 0:03:00]} 2. c4 {[%clk 0:02:54]}  g6 {[%clk 0:02:59]} 3. Nc3 {[%clk 0:02:54]}  d5 {[%clk 0:03:00]} 4. Nf3 {[%clk 0:02:54]}  Bg7 {[%clk 0:03:00]} 5. h4 {[%clk 0:02:51]}  dxc4 {[%clk 0:02:46]} 6. e4 {[%clk 0:02:51]}  c5 {[%clk 0:02:47]} 7. d5 {[%clk 0:02:50]}  b5 {[%clk 0:02:44]} 8. h5 {[%clk 0:02:50]}  Nxh5 {[%clk 0:02:44]} 9. Nxb5 {[%clk 0:02:48]}  Qa5+ {[%clk 0:02:43]} 10. Nc3 {[%clk 0:02:45]}  Nd7 {[%clk 0:02:43]} 11. Bd2 {[%clk 0:02:44]}  Rb8 {[%clk 0:02:39]} 12. Rb1 {[%clk 0:02:40]}  O-O {[%clk 0:02:32]} 13. Be2 {[%clk 0:02:27]}  Qc7 {[%clk 0:02:23]} 14. Bxc4 {[%clk 0:02:20]}  Nb6 {[%clk 0:02:15]} 15. Bf1 {[%clk 0:02:09]}  e6 {[%clk 0:02:10]} 16. g4 {[%clk 0:01:57]}  Nf6 {[%clk 0:01:41]} 17. d6 {[%clk 0:01:57]}  Qd8 {[%clk 0:01:42]} 18. Bg5 {[%clk 0:01:52]}  e5 {[%clk 0:01:36]} 19. Nxe5 {[%clk 0:01:52]}  Bb7 {[%clk 0:01:31]} 20. f4 {[%clk 0:01:26]}  Re8 {[%clk 0:01:12]} 21. Bg2 {[%clk 0:01:22]}  Nbd7 {[%clk 0:01:00]} 22. Nc4 {[%clk 0:01:04]}  h6 {[%clk 0:00:54]} 23. Bxf6 {[%clk 0:00:59]}  Nxf6 {[%clk 0:00:48]} 24. Qd3 {[%clk 0:00:46]}  Nxg4 {[%clk 0:00:42]} 25. Kf1 {[%clk 0:00:44]}  Bd4 {[%clk 0:00:38]} 26. Qg3 {[%clk 0:00:13]}  h5 {[%clk 0:00:35]} 27. Bf3 {[%clk 0:00:10]}  Ba6 {[%clk 0:00:34]} 28. Be2 {[%clk 0:00:09]}  Bxc4 {[%clk 0:00:34]} 29. Bxc4 {[%clk 0:00:10]}  Ne3+ {[%clk 0:00:34]} 30. Ke2 {[%clk 0:00:11]}  Nxc4 {[%clk 0:00:35]} 31. Rxh5 {[%clk 0:00:10]}  Bg7 {[%clk 0:00:27]} 32. e5 {[%clk 0:00:08]}  Nxd6 {[%clk 0:00:25]} 33. Rg1 {[%clk 0:00:07]}  Rxb2+ {[%clk 0:00:23]} 34. Kf3 {[%clk 0:00:07]}  Qa8+ {[%clk 0:00:23]} 35. Kg4 {[%clk 0:00:08]}  gxh5+ {[%clk 0:00:23]} 36. Kxh5 {[%clk 0:00:09]}  Nf5 {[%clk 0:00:23]} 37. Qh3 {[%clk 0:00:08]}  Qc8 {[%clk 0:00:16]} 38. Ne4 {[%clk 0:00:08]}  Kf8 {[%clk 0:00:14]} 39. Rg5 {[%clk 0:00:05]}  Nd4 {[%clk 0:00:11]} 40. Qg3 {[%clk 0:00:05]}  Ne6 {[%clk 0:00:08]} 41. Rf5 {[%clk 0:00:04]}  Qc6 {[%clk 0:00:07]} 42. Nd6 {[%clk 0:00:02]}  Qh1+ {[%clk 0:00:07]} 43. Kg4 {[%clk 0:00:01]}  Rg2 {[%clk 0:00:06]} 44. Rxf7+ {[%clk 0:00:02]}  Kg8 {[%clk 0:00:06]} 45. Qxg2 {[%clk 0:00:01]}  Qxg2+ {[%clk 0:00:06]} 46. Kh4 {[%clk 0:00:02]}  Bf8 {[%clk 0:00:06]} 47. Rf6 {[%clk 0:00:02]}  Bxd6 {[%clk 0:00:07]} 48. exd6 {[%clk 0:00:02]}  Nf8 {[%clk 0:00:05]} 49. Rf5 {[%clk 0:00:02]}  Rd8 {[%clk 0:00:06]} 50. Rg5+ {[%clk 0:00:03]}  Qxg5+ {[%clk 0:00:06]} 51. Kxg5 {[%clk 0:00:04]}  Rxd6 {[%clk 0:00:07]} 52. f5 {[%clk 0:00:04]}  Rd7 {[%clk 0:00:07]} 0-1


[Site "https://www.chess.com"]